[Event "Late-Titled-Tuesday-Blitz-October-24-2023"]
[Site "Chess.com"]
[Date "2023.10.24"]
[Round "1"]
[White "Balla_Tamas"]
[Black "IMRosen"]
[Result "1/2-1/2"]
[WhiteElo "2334"]
[BlackElo "2628"]
[TimeControl "180+1"]
[EndTime "14:11:20 PDT"]
[Termination "Game drawn by 50-move rule"]

1. e4 {[%clk 0:03:00.4]} 1... c5 {[%clk 0:02:57.2]} 2. c3 {[%clk 0:02:56.8]}
2... d5 {[%clk 0:02:56]} 3. exd5 {[%clk 0:02:57]} 3... Qxd5 {[%clk 0:02:56.1]}
4. d4 {[%clk 0:02:57.5]} 4... Nf6 {[%clk 0:02:56.8]} 5. Nf3 {[%clk 0:02:57.4]}
5... e6 {[%clk 0:02:56.3]} 6. Be3 {[%clk 0:02:52.7]} 6... cxd4 {[%clk
0:02:54.7]} 7. cxd4 {[%clk 0:02:52.3]} 7... Nc6 {[%clk 0:02:54.1]} 8. Nc3 {[%clk
0:02:52.4]} 8... Qd6 {[%clk 0:02:54.1]} 9. Bd3 {[%clk 0:02:52.1]} 9... Be7
{[%clk 0:02:54.4]} 10. O-O {[%clk 0:02:52.3]} 10... O-O {[%clk 0:02:55.1]} 11.
a3 {[%clk 0:02:51.2]} 11... a6 {[%clk 0:02:54.5]} 12. Qe2 {[%clk 0:02:51.8]}
12... b5 {[%clk 0:02:54.6]} 13. Rad1 {[%clk 0:02:51.6]} 13... Bb7 {[%clk
0:02:54.9]} 14. Bb1 {[%clk 0:02:51]} 14... b4 {[%clk 0:02:48.6]} 15. axb4 {[%clk
0:02:47.2]} 15... Nxb4 {[%clk 0:02:49.5]} 16. Bg5 {[%clk 0:02:37.3]} 16... Rfe8
{[%clk 0:02:38.9]} 17. Rfe1 {[%clk 0:02:35.1]} 17... Ng4 {[%clk 0:02:33.6]} 18.
Bxe7 {[%clk 0:02:15.4]} 18... Rxe7 {[%clk 0:02:34.5]} 19. h3 {[%clk 0:02:02.3]}
19... Nf6 {[%clk 0:02:08]} 20. Ne5 {[%clk 0:01:39.4]} 20... Rd8 {[%clk
0:02:03.5]} 21. Ng4 {[%clk 0:01:32.5]} 21... Nbd5 {[%clk 0:01:54.7]} 22. Nxf6+
{[%clk 0:01:19.1]} 22... Nxf6 {[%clk 0:01:54.4]} 23. Ne4 {[%clk 0:01:15.9]}
23... Nxe4 {[%clk 0:01:52.4]} 24. Bxe4 {[%clk 0:01:16.8]} 24... Bxe4 {[%clk
0:01:52.4]} 25. Qxe4 {[%clk 0:01:17.7]} 25... Red7 {[%clk 0:01:47.2]} 26. Qe2
{[%clk 0:01:12.6]} 26... Qb6 {[%clk 0:01:41.7]} 27. d5 {[%clk 0:00:57.1]} 27...
Rxd5 {[%clk 0:01:40.2]} 28. Rxd5 {[%clk 0:00:57.3]} 28... Rxd5 {[%clk
0:01:40.9]} 29. Rc1 {[%clk 0:00:57.4]} 29... Rd8 {[%clk 0:01:35.7]} 30. Ra1
{[%clk 0:00:47.3]} 30... a5 {[%clk 0:01:35.1]} 31. Qe5 {[%clk 0:00:47.5]} 31...
Rd5 {[%clk 0:01:13.9]} 32. Qc3 {[%clk 0:00:44.7]} 32... h6 {[%clk 0:01:11.5]}
33. Qc8+ {[%clk 0:00:44.5]} 33... Kh7 {[%clk 0:01:11.5]} 34. Qc2+ {[%clk
0:00:45.1]} 34... g6 {[%clk 0:00:56.4]} 35. Re1 {[%clk 0:00:44.1]} 35... Rb5
{[%clk 0:00:46.2]} 36. Re2 {[%clk 0:00:42.2]} 36... Rc5 {[%clk 0:00:45.1]} 37.
Qd2 {[%clk 0:00:40.8]} 37... Qc7 {[%clk 0:00:42.2]} 38. Re1 {[%clk 0:00:39.5]}
38... Rc2 {[%clk 0:00:41.7]} 39. Qd4 {[%clk 0:00:36]} 39... Rc5 {[%clk
0:00:32.1]} 40. Qf6 {[%clk 0:00:30.4]} 40... Rf5 {[%clk 0:00:31.6]} 41. Qd4
{[%clk 0:00:30.6]} 41... h5 {[%clk 0:00:27.8]} 42. Qe3 {[%clk 0:00:25]} 42...
Qc2 {[%clk 0:00:21.3]} 43. Re2 {[%clk 0:00:20.4]} 43... Qd1+ {[%clk 0:00:19.7]}
44. Kh2 {[%clk 0:00:20.3]} 44... Qd6+ {[%clk 0:00:20]} 45. Kg1 {[%clk
0:00:20.3]} 45... Rd5 {[%clk 0:00:19.7]} 46. g3 {[%clk 0:00:19.9]} 46... Rd1+
{[%clk 0:00:19]} 47. Kg2 {[%clk 0:00:17.3]} 47... Qd5+ {[%clk 0:00:18.8]} 48. f3
{[%clk 0:00:17.7]} 48... Rd3 {[%clk 0:00:18.3]} 49. Qf4 {[%clk 0:00:17.8]} 49...
Kg7 {[%clk 0:00:18.6]} 50. h4 {[%clk 0:00:15.9]} 50... Rb3 {[%clk 0:00:17.8]}
51. Rf2 {[%clk 0:00:13.8]} 51... e5 {[%clk 0:00:17.8]} 52. Qa4 {[%clk
0:00:13.4]} 52... Rb4 {[%clk 0:00:17.4]} 53. Qa3 {[%clk 0:00:13.4]} 53... Rd4
{[%clk 0:00:14.8]} 54. Qc3 {[%clk 0:00:13.2]} 54... Rd3 {[%clk 0:00:14.8]} 55.
Qe1 {[%clk 0:00:11.2]} 55... Qd4 {[%clk 0:00:14.6]} 56. Qxa5 {[%clk 0:00:10.5]}
56... Rd1 {[%clk 0:00:12.7]} 57. Qb5 {[%clk 0:00:05.7]} 57... Rb1 {[%clk
0:00:12.2]} 58. Qe2 {[%clk 0:00:05.4]} 58... f6 {[%clk 0:00:09.4]} 59. Qe4
{[%clk 0:00:05.6]} 59... Qc5 {[%clk 0:00:08.2]} 60. Qc2 {[%clk 0:00:03.4]} 60...
Qxc2 {[%clk 0:00:03.8]} 61. Rxc2 {[%clk 0:00:04.3]} 61... Kf7 {[%clk 0:00:04.5]}
62. Kf2 {[%clk 0:00:04.8]} 62... Ke6 {[%clk 0:00:05.1]} 63. Ke3 {[%clk
0:00:05.5]} 63... Kf5 {[%clk 0:00:05.7]} 64. Kf2 {[%clk 0:00:05.1]} 64... Rh1
{[%clk 0:00:04.6]} 65. Kg2 {[%clk 0:00:05.3]} 65... Rb1 {[%clk 0:00:05.3]} 66.
Kf2 {[%clk 0:00:05.7]} 66... Ke6 {[%clk 0:00:06.1]} 67. Ke3 {[%clk 0:00:05.9]}
67... Kd5 {[%clk 0:00:04.6]} 68. Rd2+ {[%clk 0:00:06]} 68... Kc5 {[%clk
0:00:05]} 69. Rc2+ {[%clk 0:00:06.6]} 69... Kd6 {[%clk 0:00:05.7]} 70. Kf2
{[%clk 0:00:07.2]} 70... f5 {[%clk 0:00:04.6]} 71. Rd2+ {[%clk 0:00:06.2]} 71...
Ke6 {[%clk 0:00:04.8]} 72. Ke3 {[%clk 0:00:06.8]} 72... Rg1 {[%clk 0:00:03.4]}
73. Kf2 {[%clk 0:00:05.9]} 73... Rc1 {[%clk 0:00:04]} 74. b4 {[%clk 0:00:05.8]}
74... Rb1 {[%clk 0:00:04.2]} 75. Rc2 {[%clk 0:00:06.1]} 75... Kd5 {[%clk
0:00:04.1]} 76. Rc5+ {[%clk 0:00:05.5]} 76... Kd6 {[%clk 0:00:04.3]} 77. Ra5
{[%clk 0:00:05.5]} 77... Rb2+ {[%clk 0:00:03.3]} 78. Ke3 {[%clk 0:00:05.5]}
78... Rb3+ {[%clk 0:00:03.9]} 79. Kf2 {[%clk 0:00:06.1]} 79... Ke6 {[%clk
0:00:04.3]} 80. Ra6+ {[%clk 0:00:06.5]} 80... Kf7 {[%clk 0:00:04.9]} 81. Rb6
{[%clk 0:00:07.2]} 81... Rb2+ {[%clk 0:00:03.8]} 82. Ke3 {[%clk 0:00:07.8]}
82... Rb3+ {[%clk 0:00:04.7]} 83. Kf2 {[%clk 0:00:08.4]} 83... e4 {[%clk
0:00:03.9]} 84. fxe4 {[%clk 0:00:08.3]} 84... fxe4 {[%clk 0:00:04.5]} 85. Kg2
{[%clk 0:00:05.9]} 85... Rf3 {[%clk 0:00:05]} 86. Rb7+ {[%clk 0:00:05.3]} 86...
Kf6 {[%clk 0:00:04.6]} 87. b5 {[%clk 0:00:05.9]} 87... Rf5 {[%clk 0:00:04.3]}
88. b6 {[%clk 0:00:06.2]} 88... e3 {[%clk 0:00:04.9]} 89. Rb8 {[%clk 0:00:05.5]}
89... e2 {[%clk 0:00:03]} 90. Re8 {[%clk 0:00:05.2]} 90... Rb5 {[%clk
0:00:03.3]} 91. Rxe2 {[%clk 0:00:05]} 91... Rxb6 {[%clk 0:00:04]} 92. Rf2+
{[%clk 0:00:03.9]} 92... Kg7 {[%clk 0:00:04.4]} 93. Kh2 {[%clk 0:00:04.4]} 93...
Re6 {[%clk 0:00:04.8]} 94. Kh3 {[%clk 0:00:04.3]} 94... Kh6 {[%clk 0:00:05.4]}
95. Ra2 {[%clk 0:00:04.4]} 95... Re3 {[%clk 0:00:05.4]} 96. Ra5 {[%clk
0:00:04.2]} 96... Re1 {[%clk 0:00:05.7]} 97. Ra6 {[%clk 0:00:04.3]} 97... Rh1+
{[%clk 0:00:06.3]} 98. Kg2 {[%clk 0:00:04.9]} 98... Rb1 {[%clk 0:00:07.2]} 99.
Kh3 {[%clk 0:00:05.4]} 99... Rb2 {[%clk 0:00:07.8]} 100. Ra5 {[%clk 0:00:05.9]}
100... Rc2 {[%clk 0:00:08.3]} 101. Ra6 {[%clk 0:00:06.3]} 101... Rc5 {[%clk
0:00:09]} 102. Ra4 {[%clk 0:00:06.6]} 102... Kg7 {[%clk 0:00:09.5]} 103. Rf4
{[%clk 0:00:06.9]} 103... Ra5 {[%clk 0:00:09]} 104. Rb4 {[%clk 0:00:07.2]}
104... Kf6 {[%clk 0:00:09.5]} 105. Rb6+ {[%clk 0:00:07.7]} 105... Kg7 {[%clk
0:00:09.2]} 106. Rb4 {[%clk 0:00:08.1]} 106... Ra7 {[%clk 0:00:08.9]} 107. Rb6
{[%clk 0:00:08.3]} 107... Re7 {[%clk 0:00:09.4]} 108. Rb4 {[%clk 0:00:08.6]}
108... Kf6 {[%clk 0:00:09.7]} 109. Rf4+ {[%clk 0:00:08.9]} 109... Ke5 {[%clk
0:00:09.4]} 110. Rf1 {[%clk 0:00:08.6]} 110... Rd7 {[%clk 0:00:09.5]} 111. Re1+
{[%clk 0:00:09]} 111... Kf5 {[%clk 0:00:09.9]} 112. Rf1+ {[%clk 0:00:09.5]}
112... Ke6 {[%clk 0:00:10.6]} 113. Re1+ {[%clk 0:00:10]} 113... Kf6 {[%clk
0:00:11.3]} 114. Rf1+ {[%clk 0:00:10.6]} 114... Kg7 {[%clk 0:00:11.7]} 115. Ra1
{[%clk 0:00:11.1]} 115... Kh6 {[%clk 0:00:12]} 116. Ra6 {[%clk 0:00:11.2]}
116... Rd2 {[%clk 0:00:11.9]} 117. Ra5 {[%clk 0:00:11.5]} 117... Rd6 {[%clk
0:00:11.7]} 118. Ra4 {[%clk 0:00:11.4]} 118... Rf6 {[%clk 0:00:12]} 119. Ra8
{[%clk 0:00:11.8]} 119... Rf5 {[%clk 0:00:11.4]} 120. Rh8+ {[%clk 0:00:12]}
120... Kg7 {[%clk 0:00:11.9]} 121. Ra8 {[%clk 0:00:12.9]} 121... Re5 {[%clk
0:00:12]} 122. Ra7+ {[%clk 0:00:13.4]} 122... Kf6 {[%clk 0:00:12.4]} 123. Ra6+
{[%clk 0:00:13.9]} 123... Kf5 {[%clk 0:00:12.9]} 124. Ra4 {[%clk 0:00:14.5]}
124... Re6 {[%clk 0:00:12.8]} 125. Rf4+ {[%clk 0:00:14.7]} 125... Ke5 {[%clk
0:00:12.8]} 126. Ra4 {[%clk 0:00:15.6]} 126... Rf6 {[%clk 0:00:12]} 127. Ra5+
{[%clk 0:00:16]} 127... Ke4 {[%clk 0:00:12.6]} 128. Ra4+ {[%clk 0:00:16.4]}
128... Kf3 {[%clk 0:00:13.2]} 129. Ra3+ {[%clk 0:00:16.9]} 129... Ke2 {[%clk
0:00:12.9]} 130. Ra2+ {[%clk 0:00:17.4]} 130... Kf1 {[%clk 0:00:12.6]} 131. Ra1+
{[%clk 0:00:17.8]} 131... Kf2 {[%clk 0:00:13.1]} 132. Ra2+ {[%clk 0:00:18.4]}
132... Kg1 {[%clk 0:00:13.3]} 133. Ra1+ {[%clk 0:00:18.9]} 133... Rf1 {[%clk
0:00:09.2]} 134. Ra2 {[%clk 0:00:16.3]} 134... Rf2 {[%clk 0:00:08.4]} 135. Ra1+
{[%clk 0:00:16]} 135... Rf1 {[%clk 0:00:08.6]} 136. Ra2 {[%clk 0:00:16.5]}
136... Rf3 {[%clk 0:00:06.5]} 137. Rg2+ {[%clk 0:00:16]} 137... Kf1 {[%clk
0:00:06.6]} 138. Ra2 {[%clk 0:00:16.2]} 138... Re3 {[%clk 0:00:06.6]} 139. Ra1+
{[%clk 0:00:16.4]} 139... Kf2 {[%clk 0:00:06.9]} 140. Ra2+ {[%clk 0:00:16.2]}
140... Kf3 {[%clk 0:00:07.3]} 141. Ra6 {[%clk 0:00:16.3]} 141... Re1 {[%clk
0:00:05.7]} 1/2-1/2

[Event "Late-Titled-Tuesday-Blitz-October-24-2023"]
[Site "Chess.com"]
[Date "2023.10.24"]
[Round "2"]
[White "Karacsonyi_Gellert"]
[Black "Road2GM3000"]
[Result "1-0"]
[WhiteElo "2746"]
[BlackElo "2373"]
[TimeControl "180+1"]
[EndTime "14:11:57 PDT"]
[Termination "Karacsonyi_Gellert won by resignation"]

1. e4 {[%clk 0:03:00.9]} 1... c5 {[%clk 0:02:59.6]} 2. Nf3 {[%clk 0:03:00.9]}
2... d6 {[%clk 0:02:59.5]} 3. d4 {[%clk 0:03:01.6]} 3... cxd4 {[%clk 0:03:00.4]}
4. Nxd4 {[%clk 0:03:02.3]} 4... Nf6 {[%clk 0:03:01.1]} 5. Nc3 {[%clk 0:03:02.9]}
5... a6 {[%clk 0:03:01.9]} 6. Bc4 {[%clk 0:03:03.5]} 6... e6 {[%clk 0:03:02.4]}
7. O-O {[%clk 0:03:04.1]} 7... Be7 {[%clk 0:03:02.6]} 8. Bb3 {[%clk 0:03:04.2]}
8... O-O {[%clk 0:03:03]} 9. f4 {[%clk 0:03:04.9]} 9... Nc6 {[%clk 0:03:03.4]}
10. Nxc6 {[%clk 0:03:04.6]} 10... b6 {[%clk 0:03:03.8]} 11. Nxd8 {[%clk
0:03:04.1]} 1-0

[Event "Late-Titled-Tuesday-Blitz-October-24-2023"]
[Site "Chess.com"]
[Date "2023.10.24"]
[Round "2"]
[White "YellowJacek"]
[Black "Ykow"]
[Result "0-1"]
[WhiteElo "2292"]
[BlackElo "2517"]
[TimeControl "180+1"]
[EndTime "14:13:25 PDT"]
[Termination "Ykow won by resignation"]

1. c4 {[%clk 0:02:57.7]} 1... e6 {[%clk 0:02:59.6]} 2. g3 {[%clk 0:02:53.2]}
2... d5 {[%clk 0:03:00.5]} 3. Bg2 {[%clk 0:02:53.7]} 3... Nf6 {[%clk 0:02:59.3]}
4. Nf3 {[%clk 0:02:53.9]} 4... d4 {[%clk 0:02:58.6]} 5. O-O {[%clk 0:02:52.8]}
5... Nc6 {[%clk 0:02:58.9]} 6. e3 {[%clk 0:02:52.5]} 6... Bc5 {[%clk 0:02:56.4]}
7. exd4 {[%clk 0:02:49.7]} 7... Nxd4 {[%clk 0:02:57.3]} 8. Nc3 {[%clk
0:02:36.9]} 8... h5 {[%clk 0:02:56.6]} 9. a3 {[%clk 0:02:30.6]} 9... a5 {[%clk
0:02:54.2]} 10. b3 {[%clk 0:02:30.9]} 10... h4 {[%clk 0:02:51.8]} 11. Nxh4
{[%clk 0:02:29.8]} 11... e5 {[%clk 0:02:49.3]} 12. Nf3 {[%clk 0:02:25.8]} 12...
Ng4 {[%clk 0:02:47.3]} 13. Re1 {[%clk 0:02:10.9]} 13... Nxf3+ {[%clk 0:02:41.9]}
14. Qxf3 {[%clk 0:02:11.8]} 14... Bxf2+ {[%clk 0:02:42.4]} 15. Kf1 {[%clk
0:02:08.2]} 15... Nxh2+ {[%clk 0:02:42.3]} 0-1

[Event "Late-Titled-Tuesday-Blitz-October-24-2023"]
[Site "Chess.com"]
[Date "2023.10.24"]
[Round "2"]
[White "cthulhuuu"]
[Black "Hoshka"]
[Result "1-0"]
[WhiteElo "2428"]
[BlackElo "2056"]
[TimeControl "180+1"]
[EndTime "14:14:24 PDT"]
[Termination "cthulhuuu won by resignation"]

1. e4 {[%clk 0:02:59.9]} 1... e5 {[%clk 0:02:59.6]} 2. Nf3 {[%clk 0:03:00.1]}
2... Nc6 {[%clk 0:02:59.5]} 3. Bb5 {[%clk 0:03:00.3]} 3... a6 {[%clk 0:02:59.2]}
4. Bxc6 {[%clk 0:03:00.5]} 4... dxc6 {[%clk 0:02:59.2]} 5. O-O {[%clk
0:03:01.4]} 5... Bg4 {[%clk 0:02:59]} 6. h3 {[%clk 0:03:02]} 6... h5 {[%clk
0:02:59.3]} 7. d3 {[%clk 0:03:02.7]} 7... Qf6 {[%clk 0:02:56.9]} 8. Nbd2 {[%clk
0:03:02.9]} 8... Ne7 {[%clk 0:02:55.9]} 9. Re1 {[%clk 0:03:03.4]} 9... Ng6
{[%clk 0:02:46.8]} 10. d4 {[%clk 0:03:03.4]} 10... Bxf3 {[%clk 0:02:40.4]} 11.
Nxf3 {[%clk 0:03:00.3]} 11... exd4 {[%clk 0:02:26.3]} 12. e5 {[%clk 0:02:57.2]}
12... Qd8 {[%clk 0:02:09.7]} 13. e6 {[%clk 0:02:48.3]} 13... c5 {[%clk
0:02:00.4]} 14. exf7+ {[%clk 0:02:37.1]} 14... Kxf7 {[%clk 0:01:59.9]} 15. Qd3
{[%clk 0:02:30]} 15... Qf6 {[%clk 0:01:49.5]} 16. Qc4+ {[%clk 0:02:17.5]} 1-0

[Event "Late-Titled-Tuesday-Blitz-October-24-2023"]
[Site "Chess.com"]
[Date "2023.10.24"]
[Round "2"]
[White "SanchezKelvin"]
[Black "Korchmar_Vasiliy"]
[Result "0-1"]
[WhiteElo "2553"]
[BlackElo "2778"]
[TimeControl "180+1"]
[EndTime "14:15:35 PDT"]
[Termination "Korchmar_Vasiliy won by resignation"]

1. e4 {[%clk 0:03:00]} 1... c5 {[%clk 0:03:00]} 2. Nf3 {[%clk 0:03:00.2]} 2...
d6 {[%clk 0:03:00.4]} 3. d4 {[%clk 0:03:00.7]} 3... cxd4 {[%clk 0:03:01.3]} 4.
Nxd4 {[%clk 0:03:00.6]} 4... Nf6 {[%clk 0:03:01.9]} 5. Nc3 {[%clk 0:03:01]} 5...
Nc6 {[%clk 0:03:02.4]} 6. Bg5 {[%clk 0:02:58.2]} 6... Bd7 {[%clk 0:03:02.1]} 7.
f4 {[%clk 0:02:55.3]} 7... Qb6 {[%clk 0:02:53]} 8. Nb3 {[%clk 0:02:54.5]} 8...
Ng4 {[%clk 0:02:48.7]} 9. Qf3 {[%clk 0:02:47.7]} 9... Nb4 {[%clk 0:02:44.1]} 10.
Bd3 {[%clk 0:02:34.7]} 10... h6 {[%clk 0:02:39.6]} 11. Bh4 {[%clk 0:02:33.2]}
11... g5 {[%clk 0:02:39.1]} 12. fxg5 {[%clk 0:02:29.7]} 12... hxg5 {[%clk
0:02:38.5]} 13. Bxg5 {[%clk 0:02:22.5]} 13... Ne5 {[%clk 0:02:15.2]} 14. Qe2
{[%clk 0:02:14]} 14... Bg4 {[%clk 0:02:10.4]} 15. Qd2 {[%clk 0:02:11.6]} 15...
Rxh2 {[%clk 0:02:03.6]} 16. Rf1 {[%clk 0:01:50.5]} 16... Nbxd3+ {[%clk
0:01:35.4]} 17. cxd3 {[%clk 0:01:50.1]} 17... Nf3+ {[%clk 0:01:36]} 18. Rxf3
{[%clk 0:01:46.6]} 18... Bxf3 {[%clk 0:01:36.4]} 19. Qf2 {[%clk 0:01:30.7]}
19... Rh1+ {[%clk 0:01:28.7]} 0-1

[Event "Late-Titled-Tuesday-Blitz-October-24-2023"]
[Site "Chess.com"]
[Date "2023.10.24"]
[Round "2"]
[White "AndresDelgado77"]
[Black "luksona14"]
[Result "1-0"]
[WhiteElo "2351"]
[BlackElo "2567"]
[TimeControl "180+1"]
[EndTime "14:15:39 PDT"]
[Termination "AndresDelgado77 won by resignation"]

1. e4 {[%clk 0:03:00]} 1... c5 {[%clk 0:03:00]} 2. Nf3 {[%clk 0:02:43.8]} 2...
Nc6 {[%clk 0:02:59.7]} 3. b4 {[%clk 0:02:43.6]} 3... Nxb4 {[%clk 0:02:53]} 4. c3
{[%clk 0:02:29.2]} 4... Nc6 {[%clk 0:02:49.9]} 5. d4 {[%clk 0:02:28.8]} 5...
cxd4 {[%clk 0:02:50.8]} 6. cxd4 {[%clk 0:02:24.6]} 6... d6 {[%clk 0:02:42.8]} 7.
d5 {[%clk 0:02:21.7]} 7... Ne5 {[%clk 0:02:42.3]} 8. Nxe5 {[%clk 0:02:21.3]}
8... dxe5 {[%clk 0:02:43.2]} 9. Qh5 {[%clk 0:02:19.4]} 9... Nf6 {[%clk
0:02:30.1]} 10. Qxe5 {[%clk 0:02:18.6]} 10... e6 {[%clk 0:02:25.1]} 11. Bb5+
{[%clk 0:02:04.6]} 11... Bd7 {[%clk 0:02:19.2]} 12. dxe6 {[%clk 0:01:58.8]}
12... Qa5+ {[%clk 0:02:05.9]} 13. Bd2 {[%clk 0:01:57.7]} 13... Qb6 {[%clk
0:01:42.3]} 14. exd7+ {[%clk 0:01:48.1]} 14... Kd8 {[%clk 0:01:42.6]} 15. Qe8+
{[%clk 0:01:33.1]} 15... Kc7 {[%clk 0:01:41.3]} 16. Qxa8 {[%clk 0:01:29.3]}
16... Nxd7 {[%clk 0:01:41]} 17. Nc3 {[%clk 0:01:20.2]} 17... Bc5 {[%clk
0:01:35.6]} 18. Nd5+ {[%clk 0:01:13.3]} 1-0

[Event "Late-Titled-Tuesday-Blitz-October-24-2023"]
[Site "Chess.com"]
[Date "2023.10.24"]
[Round "2"]
[White "Yushko_Olga"]
[Black "semchik73"]
[Result "0-1"]
[WhiteElo "2143"]
[BlackElo "2449"]
[TimeControl "180+1"]
[EndTime "14:15:41 PDT"]
[Termination "semchik73 won by resignation"]

1. d4 {[%clk 0:02:59.5]} 1... d5 {[%clk 0:02:59.2]} 2. c4 {[%clk 0:03:00.2]}
2... c6 {[%clk 0:02:58.9]} 3. cxd5 {[%clk 0:03:00.4]} 3... cxd5 {[%clk
0:02:58.9]} 4. Nc3 {[%clk 0:03:01.3]} 4... Nf6 {[%clk 0:02:59.3]} 5. Nf3 {[%clk
0:03:02.2]} 5... Nc6 {[%clk 0:02:59.8]} 6. Bf4 {[%clk 0:03:02.8]} 6... e6 {[%clk
0:02:59.8]} 7. e3 {[%clk 0:03:03.4]} 7... Bd6 {[%clk 0:03:00.1]} 8. Bg5 {[%clk
0:03:00.9]} 8... h6 {[%clk 0:02:59.4]} 9. Bh4 {[%clk 0:03:01.1]} 9... Qb6 {[%clk
0:02:47.5]} 10. Qc2 {[%clk 0:02:44.8]} 10... Ne4 {[%clk 0:02:40.8]} 11. Nxe4
{[%clk 0:02:38.1]} 11... dxe4 {[%clk 0:02:40.9]} 12. Nd2 {[%clk 0:02:38.3]}
12... f5 {[%clk 0:02:40.6]} 13. Be2 {[%clk 0:02:37.7]} 13... g5 {[%clk
0:02:34.9]} 14. Bh5+ {[%clk 0:02:36.8]} 14... Ke7 {[%clk 0:02:31.8]} 15. Bg3
{[%clk 0:02:36]} 15... Nb4 {[%clk 0:02:24.7]} 16. Bxd6+ {[%clk 0:02:31.7]} 16...
Qxd6 {[%clk 0:02:24.4]} 17. Qb3 {[%clk 0:02:23.7]} 17... Nd3+ {[%clk 0:02:23.5]}
18. Ke2 {[%clk 0:02:23.8]} 18... Qa6 {[%clk 0:02:09.5]} 19. Nc4 {[%clk
0:02:13.2]} 19... Nxb2 {[%clk 0:02:02.4]} 20. Rhc1 {[%clk 0:02:06.7]} 20... Nxc4
{[%clk 0:01:57.5]} 21. Rxc4 {[%clk 0:02:06.7]} 21... Bd7 {[%clk 0:01:49.6]} 22.
Ke1 {[%clk 0:02:02.1]} 22... Qa5+ {[%clk 0:01:49.4]} 23. Kd1 {[%clk 0:01:48.4]}
23... Rac8 {[%clk 0:01:45.5]} 24. Be2 {[%clk 0:01:45.6]} 24... Rxc4 {[%clk
0:01:44]} 25. Qxc4 {[%clk 0:01:42.3]} 25... Rc8 {[%clk 0:01:34.9]} 0-1

[Event "Late-Titled-Tuesday-Blitz-October-24-2023"]
[Site "Chess.com"]
[Date "2023.10.24"]
[Round "2"]
[White "Kirill_Klukin"]
[Black "Msb2"]
[Result "0-1"]
[WhiteElo "2633"]
[BlackElo "3084"]
[TimeControl "180+1"]
[EndTime "14:15:51 PDT"]
[Termination "Msb2 won by resignation"]

1. c4 {[%clk 0:02:59.9]} 1... e6 {[%clk 0:03:00.2]} 2. Nc3 {[%clk 0:03:00.1]}
2... d5 {[%clk 0:03:01.1]} 3. d4 {[%clk 0:02:59.7]} 3... Bb4 {[%clk 0:03:01.8]}
4. e3 {[%clk 0:02:57.2]} 4... Nf6 {[%clk 0:03:01.6]} 5. Bd2 {[%clk 0:02:57.7]}
5... O-O {[%clk 0:03:00]} 6. Nf3 {[%clk 0:02:54.3]} 6... b6 {[%clk 0:02:57.4]}
7. cxd5 {[%clk 0:02:53.8]} 7... exd5 {[%clk 0:02:58.3]} 8. Bd3 {[%clk
0:02:52.5]} 8... c5 {[%clk 0:02:57.3]} 9. O-O {[%clk 0:02:49.6]} 9... Nc6 {[%clk
0:02:55.4]} 10. a3 {[%clk 0:02:40.3]} 10... Bxc3 {[%clk 0:02:53.6]} 11. Bxc3
{[%clk 0:02:39.7]} 11... c4 {[%clk 0:02:54.2]} 12. Bc2 {[%clk 0:02:35.9]} 12...
Bg4 {[%clk 0:02:54.9]} 13. h3 {[%clk 0:02:34.4]} 13... Bh5 {[%clk 0:02:54]} 14.
g4 {[%clk 0:02:25.2]} 14... Bg6 {[%clk 0:02:51.7]} 15. Ne5 {[%clk 0:02:25.1]}
15... Nxe5 {[%clk 0:02:45.3]} 16. dxe5 {[%clk 0:02:25.1]} 16... Ne4 {[%clk
0:02:45.8]} 17. Bxe4 {[%clk 0:01:33.9]} 17... Bxe4 {[%clk 0:02:46.7]} 18. f3
{[%clk 0:01:34.4]} 18... Bd3 {[%clk 0:02:45]} 19. Rf2 {[%clk 0:01:34.8]} 19...
Qh4 {[%clk 0:02:41.8]} 20. Kg2 {[%clk 0:01:28.7]} 20... Rae8 {[%clk 0:02:41.6]}
21. Rd2 {[%clk 0:01:03.4]} 21... f6 {[%clk 0:02:29.3]} 22. exf6 {[%clk
0:00:55.4]} 22... Rxe3 {[%clk 0:02:30.2]} 23. Bd4 {[%clk 0:00:53.7]} 23... Rxf3
{[%clk 0:02:25.1]} 24. Qe2 {[%clk 0:00:32.7]} 24... Qxh3+ {[%clk 0:02:21.7]} 0-1

[Event "Late-Titled-Tuesday-Blitz-October-24-2023"]
[Site "Chess.com"]
[Date "2023.10.24"]
[Round "2"]
[White "Deeper44"]
[Black "Felix-Rose"]
[Result "1-0"]
[WhiteElo "2532"]
[BlackElo "2321"]
[TimeControl "180+1"]
[EndTime "14:16:11 PDT"]
[Termination "Deeper44 won on time"]

1. d4 {[%clk 0:03:00]} 1... d5 {[%clk 0:02:58.2]} 2. c4 {[%clk 0:03:00.5]} 2...
e6 {[%clk 0:02:58.4]} 3. Nf3 {[%clk 0:03:00.9]} 3... Nf6 {[%clk 0:02:58.7]} 4.
g3 {[%clk 0:03:01.5]} 4... dxc4 {[%clk 0:02:59.1]} 5. Bg2 {[%clk 0:03:01.6]}
5... a6 {[%clk 0:02:59.4]} 6. O-O {[%clk 0:02:59.3]} 6... Nc6 {[%clk 0:02:59.9]}
7. e3 {[%clk 0:02:55.8]} 7... Rb8 {[%clk 0:02:57.1]} 8. Nfd2 {[%clk 0:02:54.2]}
8... e5 {[%clk 0:02:42.7]} 9. Bxc6+ {[%clk 0:02:43.7]} 9... bxc6 {[%clk
0:02:43.6]} 10. dxe5 {[%clk 0:02:41.8]} 10... Ng4 {[%clk 0:02:42.4]} 11. Nxc4
{[%clk 0:02:35.6]} 11... Qxd1 {[%clk 0:02:24.9]} 12. Rxd1 {[%clk 0:02:34.7]}
12... Be6 {[%clk 0:02:25.3]} 13. Nbd2 {[%clk 0:02:05.7]} 1-0